bitfinex/quotes_SOLUSD_20240811
["timestamp","ask_amount","ask_price","bid_price","bid_amount"]
[1723361905136,34.737,156.63,156.57,0.37647]
[1723361905342,34.737,156.63,156.57,20.37647]
[1723361906540,34.737,156.63,156.58,45.12549]
[1723361906741,34.737,156.63,156.59,20.0]
[1723361907554,19.25,156.63,156.59,20.0]
[1723361908129,15.6814,156.67,156.6,0.25098]
[1723361908130,19.25,156.65,156.6,0.25098]
[1723361908349,19.25,156.66,156.6,45.25098]
[1723361908553,19.25,156.66,156.61,20.0]
[1723361908932,19.25,156.64,156.61,20.0]
[1723361909251,19.25,156.64,156.58,0.25098]
[1723361909452,19.25,156.64,156.59,0.25098]
[1723361909634,19.25,156.64,156.59,20.25098]
[1723361909837,19.25,156.64,156.6,45.0]
[1723361910031,19.25,156.66,156.61,20.0]
[1723361911449,19.25,156.68,156.61,20.0]
[1723361911631,19.25,156.68,156.62,45.25098]
[1723361912238,19.25,156.68,156.63,20.0]
[1723361912448,15.6814,156.71,156.63,20.0]
[1723361912663,34.9314,156.71,156.64,45.25098]
[1723361912949,34.9314,156.71,156.64,45.12549]
[1723361912950,19.25,156.69,156.64,45.12549]
[1723361913155,19.25,156.67,156.65,20.0]
[1723361913740,19.25,156.67,156.59,20.0]
[1723361913956,19.25,156.67,156.6,45.0]
[1723361914137,19.25,156.67,156.61,20.0]
[1723361914634,19.25,156.67,156.62,45.0]
[1723361914835,19.25,156.67,156.63,20.0]
[1723361915459,19.25,156.67,156.59,20.12549]
[1723361915759,19.25,156.67,156.6,45.37647]
[1723361915940,19.25,156.67,156.61,20.0]
[1723361917254,19.25,156.67,156.62,45.37647]
[1723361917838,19.25,156.67,156.63,20.0]
[1723361920240,15.6814,156.71,156.59,20.12549]
[1723361920241,19.25,156.65,156.59,20.12549]
[1723361920446,19.25,156.65,156.6,45.0]
[1723361920648,19.25,156.65,156.59,1.27685908]
[1723361921855,19.25,156.65,156.58,7.88832819]
[1723361922038,19.25,156.65,156.58,1.27692819]
[1723361922244,19.25,156.65,156.58,45.0]
[1723361923255,19.25,156.65,156.59,20.0]
[1723361925266,19.25,156.61,156.57,8.52707263]
[1723361925441,19.25,156.61,156.56,16.1097]
[1723361925643,19.25,156.63,156.57,1.2771118]
[1723361925842,16.4622,156.65,156.56,24.63677263]
[1723361925843,35.7122,156.65,156.56,24.63677263]
[1723361926270,19.25,156.65,156.56,24.63677263]
[1723361926571,19.25,156.65,156.57,0.12549]
[1723361926785,19.25,156.65,156.57,45.50196]
[1723361926953,19.25,156.65,156.58,20.0]
[1723361927146,19.25,156.67,156.6,0.12549]
[1723361927349,19.25,156.67,156.6,20.12549]
[1723361927572,19.25,156.67,156.61,45.25098]
[1723361927876,19.25,156.67,156.62,20.0]
[1723361929149,19.25,156.65,156.62,20.0]
[1723361929778,19.25,156.67,156.62,20.0]
[1723361930668,19.25,156.67,156.59,0.25098]
[1723361930867,19.25,156.67,156.6,0.25098]
[1723361931262,19.25,156.67,156.61,0.12549]
[1723361932066,19.25,156.67,156.61,45.12549]
[1723361932263,19.25,156.67,156.62,20.0]
[1723361933287,19.25,156.67,156.63,45.25098]
[1723361933467,19.25,156.69,156.63,45.25098]
[1723361933666,19.25,156.69,156.64,20.0]
[1723361934765,19.25,156.69,156.65,45.0]
[1723361935482,19.25,156.69,156.64,20.0]
[1723361935692,19.25,156.69,156.63,0.25098]
[1723361935896,19.25,156.69,156.62,45.37647]
[1723361936068,19.25,156.69,156.63,20.12549]
[1723361936263,19.25,156.69,156.64,45.0]
[1723361936463,19.25,156.69,156.65,20.0]
[1723361940991,19.25,156.71,156.65,20.0]
[1723361941770,9.61,156.69,156.65,20.0]
[1723361942282,9.61,156.71,156.65,20.0]
[1723361942708,9.61,156.71,156.66,0.25098]
[1723361942888,9.61,156.71,156.67,0.12549]
[1723361943293,9.61,156.71,156.67,20.12549]
[1723361943804,15.8174,156.77,156.68,61.83848]
[1723361943805,9.61,156.74,156.68,61.83848]
[1723361944108,9.61,156.74,156.69,20.0]
[1723361944701,9.61,156.7,156.69,20.0]
[1723361944877,9.61,156.7,156.64,20.0]
[1723361945072,9.61,156.7,156.65,1.27631376]
[1723361945577,9.61,156.7,156.64,20.0]
[1723361945796,9.61,156.72,156.65,1.2763541]
[1723361946002,9.61,156.72,156.66,0.12549]
[1723361946183,9.61,156.72,156.66,20.12549]
[1723361946507,9.61,156.72,156.67,45.0]
[1723361946679,9.61,156.72,156.68,20.0]
[1723361947205,9.61,156.72,156.65,20.12549]
[1723361947381,9.61,156.72,156.66,0.25098]
[1723361947775,19.22,156.73,156.66,1.52728853]
[1723361947971,19.22,156.73,156.66,46.52728853]
[1723361948198,19.22,156.73,156.67,20.0]
[1723361948402,19.22,156.73,156.67,65.0]
[1723361948589,19.22,156.73,156.67,20.0]
[1723361948897,19.22,156.75,156.68,1.40167695]
[1723361949100,19.22,156.75,156.68,1.27618695]
[1723361949396,19.22,156.75,156.68,21.27618695]
[1723361949996,19.22,156.73,156.68,21.27618695]
[1723361950483,19.22,156.73,156.68,20.0]
[1723361951402,17.62490015,156.73,156.68,20.0]
[1723361952083,19.22,156.69,156.62,6.1863]
[1723361952289,19.22,156.69,156.63,16.5875]
[1723361953588,19.22,156.69,156.64,0.12549]
[1723361953812,19.22,156.67,156.62,6.1863]
[1723361954407,19.22,156.69,156.62,6.1863]
[1723361955008,19.22,156.69,156.63,0.12549]
[1723361955500,19.22,156.69,156.62,0.25098]
[1723361955702,19.22,156.69,156.62,45.25098]
[1723361955909,19.22,156.69,156.63,20.0]
[1723361957327,19.22,156.67,156.63,20.0]
[1723361958308,15.8174,156.71,156.63,20.0]
[1723361958606,19.22,156.68,156.63,20.0]
[1723361960005,19.22,156.7,156.64,0.12549]
[1723361960221,19.22,156.7,156.64,45.50196]
[1723361960713,19.22,156.7,156.65,20.0]
[1723361962083,19.22,156.72,156.65,20.0]
[1723361966192,19.22,156.7,156.65,20.0]
[1723361966905,19.22,156.7,156.65,21.27643377]
[1723361968127,19.22,156.7,156.65,20.0]
[1723361969708,9.61,156.69,156.65,20.0]
[1723361975131,9.61,156.69,156.65,36.5048]
[1723361977520,15.8174,156.75,156.65,36.5048]
[1723361977835,9.61,156.72,156.66,45.25098]
[1723361978034,9.61,156.72,156.67,20.0]
[1723361987318,9.61,156.72,156.68,45.12549]
[1723361987519,9.61,156.72,156.69,20.0]
[1723361989316,9.61,156.72,156.66,20.25098]
[1723361989534,9.61,156.72,156.67,45.37647]
[1723361989741,9.61,156.72,156.68,20.0]
[1723361990239,9.61,156.72,156.66,20.0]
[1723361993147,9.61,156.72,156.67,45.25098]
[1723361993323,9.61,156.72,156.68,20.0]
[1723361994547,9.61,156.72,156.66,20.0]
[1723361994732,9.61,156.72,156.67,45.12549]
[1723361994940,9.61,156.72,156.68,20.0]
[1723361995534,9.61,156.72,156.66,20.0]
[1723361995734,0.12549,156.76,156.66,20.0]
[1723361995941,9.61,156.73,156.66,20.0]
[1723362002147,0.12549,156.77,156.67,0.12549]
[1723362002327,9.61,156.75,156.67,45.25098]
[1723362002535,9.61,156.75,156.68,20.0]
[1723362003237,9.61,156.73,156.68,20.0]
[1723362003444,9.61,156.73,156.66,20.0]
[1723362005554,9.61,156.73,156.66,29.61]
[1723362009555,9.61,156.73,156.66,20.0]
[1723362010239,9.61,156.71,156.66,20.0]
[1723362010433,9.61,156.73,156.66,20.0]
[1723362012435,9.61,156.73,156.66,18.0]
[1723362013345,9.61,156.71,156.66,18.0]
[1723362015052,9.61,156.73,156.66,18.0]
[1723362015855,15.3025,156.74,156.66,18.0]
[1723362015856,9.61,156.71,156.66,18.0]
[1723362016043,9.61,156.71,156.65,20.12549]
[1723362016232,15.3025,156.74,156.66,45.12549]
[1723362016438,9.61,156.72,156.67,20.0]
[1723362019859,15.3025,156.74,156.67,20.0]
[1723362020159,9.61,156.73,156.67,20.0]
[1723362020343,15.3025,156.74,156.67,20.0]
[1723362020545,9.61,156.72,156.65,20.12549]
[1723362020753,9.61,156.72,156.65,20.0]
[1723362023851,9.61,156.7,156.65,20.0]
[1723362026770,15.3025,156.74,156.66,45.0]
[1723362026976,9.61,156.73,156.67,20.0]
[1723362027648,9.61,156.73,156.65,20.0]
[1723362028148,9.61,156.73,156.66,45.37647]
[1723362028364,9.61,156.73,156.67,20.0]
[1723362032974,60.1937,156.78,156.67,20.0]
[1723362033156,9.61,156.74,156.68,45.25098]
[1723362033358,9.61,156.74,156.69,20.0]
[1723362033553,9.61,156.75,156.69,20.0]
[1723362034897,21.7537,156.78,156.69,20.0]
[1723362035181,9.61,156.75,156.69,20.0]
[1723362042369,9.61,156.77,156.7,6.3775]
[1723362042581,0.12549,156.81,156.7,6.3775]
[1723362042582,9.61,156.76,156.7,6.3775]
[1723362042765,9.61,156.76,156.71,20.0]
[1723362044978,9.61,156.77,156.71,20.0]
[1723362045968,9.61,156.76,156.71,20.0]
[1723362048491,0.12549,156.81,156.71,20.0]
[1723362048789,9.61,156.77,156.71,20.0]
[1723362051090,9.61,156.76,156.71,20.0]
[1723362055469,9.61,156.75,156.71,20.0]
[1723362058693,9.61,156.76,156.71,20.0]
[1723362059169,9.61,156.75,156.71,20.0]
[1723362062285,9.61,156.76,156.71,20.0]
[1723362063683,9.61,156.75,156.71,20.0]
[1723362065694,0.50196,156.81,156.71,20.0]
[1723362065894,9.61,156.76,156.71,20.0]
[1723362071388,9.61,156.76,156.72,1.59479459]
[1723362073516,15.4297,156.82,156.73,16.5609]
[1723362073697,15.4297,156.82,156.74,20.0]
[1723362074004,9.61,156.8,156.74,20.0]
[1723362074408,9.61,156.8,156.75,1.59479459]
[1723362078105,6.3758,156.85,156.75,1.59479459]
[1723362078106,9.61,156.76,156.75,1.59479459]
[1723362079304,9.73549,156.76,156.66,22.75475709]
[1723362079613,9.61,156.7,156.66,16.5609]
[1723362081002,9.61,156.7,156.67,20.0]
[1723362081400,9.61,156.7,156.66,16.5609]
[1723362082711,9.61,156.7,156.67,20.0]
[1723362083510,38.44,156.78,156.67,20.0]
[1723362083511,15.6542,156.8,156.67,20.0]
[1723362083709,9.61,156.74,156.67,20.0]
[1723362084502,9.61,156.73,156.67,20.0]
[1723362085593,0.12549,156.79,156.67,20.0]
[1723362085796,9.61,156.75,156.68,45.12549]
[1723362086015,9.61,156.75,156.69,20.0]
[1723362087420,9.61,156.77,156.71,15.1806]
[1723362087713,9.61,156.77,156.72,20.0]
[1723362088016,9.61,156.8,156.72,29.61]
[1723362089517,9.61,156.78,156.72,29.61]
[1723362089721,9.61,156.78,156.72,20.0]
[1723362093320,6.50209,156.83,156.72,20.0]
[1723362093321,9.61,156.76,156.72,20.0]
[1723362093527,0.12549,156.83,156.72,20.0]
[1723362093732,9.61,156.81,156.73,9.61]
[1723362094027,9.61,156.81,156.74,20.0]
[1723362094840,9.61,156.81,156.74,21.27572323]
[1723362095402,9.61,156.81,156.74,20.0]
[1723362096012,9.61,156.81,156.74,21.27568106]
[1723362096625,9.61,156.81,156.75,6.4623]
[1723362096822,9.61,156.81,156.76,20.0]
[1723362102130,9.61,156.81,156.76,36.45623795]
[1723362102934,9.61,156.81,156.76,35.1806]
[1723362105633,9.61,156.83,156.76,35.1806]
[1723362107437,9.61,156.82,156.76,35.1806]
[1723362109651,9.61,156.8,156.76,35.1806]
[1723362111155,9.61,156.81,156.76,35.1806]
[1723362113338,6.3757,156.85,156.76,35.1806]
[1723362113543,9.61,156.82,156.76,35.1806]
[1723362115452,0.12549,156.85,156.76,35.1806]
[1723362115662,9.61,156.81,156.76,35.1806]
[1723362116156,9.61,156.82,156.76,35.1806]
[1723362116463,0.842056,156.86,156.76,35.1806]
[1723362116642,0.842056,156.86,156.77,11.13640068]
[1723362116837,0.842056,156.86,156.79,9.61]
[1723362117036,0.842056,156.86,156.8,21.27524851]
[1723362118036,0.842056,156.86,156.8,30.88524851]
[1723362120262,10.452056,156.86,156.8,21.27524851]
[1723362120465,9.61,156.85,156.79,20.0]
[1723362121362,0.842056,156.86,156.79,20.0]
[1723362121542,10.452056,156.86,156.79,20.0]
[1723362121742,9.61,156.85,156.79,20.0]
[1723362121940,0.842056,156.86,156.79,20.0]
[1723362121941,9.61,156.84,156.79,20.0]
[1723362122258,9.61,156.85,156.79,20.0]
[1723362125158,10.452056,156.86,156.79,21.27523112]
[1723362125465,10.452056,156.86,156.8,1.27522835]
[1723362126063,0.842056,156.86,156.8,1.27522835]
[1723362126863,0.842056,156.86,156.79,29.61]
[1723362129562,9.61,156.85,156.79,29.61]
[1723362129767,9.61,156.85,156.79,20.0]
[1723362133961,9.61,156.83,156.79,20.0]
[1723362134853,0.842056,156.86,156.8,15.4077]
[1723362135055,0.842056,156.86,156.81,65.0]
[1723362135777,0.842056,156.86,156.81,66.27507997]
[1723362135962,0.842056,156.86,156.82,0.12549]
[1723362140771,0.842056,156.86,156.82,0.37647]
[1723362147187,10.452056,156.86,156.81,65.0]
[1723362147493,9.61,156.84,156.8,15.4077]
[1723362148790,9.61,156.84,156.81,20.0]
[1723362149480,9.61,156.82,156.78,6.0674]
[1723362149789,9.61,156.8,156.76,15.3553]
[1723362151690,9.61,156.8,156.77,20.0]
[1723362152796,9.61,156.82,156.77,20.0]
[1723362153795,9.61,156.82,156.77,21.27542412]
[1723362153975,9.61,156.83,156.78,45.50196]
[1723362155297,9.61,156.83,156.78,46.77722307]
[1723362155595,9.61,156.83,156.79,20.0]
[1723362162598,9.61,156.83,156.77,20.0]
[1723362162797,9.61,156.83,156.77,65.0]
[1723362163682,9.61,156.81,156.77,20.0]
[1723362165516,9.61,156.79,156.77,20.0]
[1723362166509,9.61,156.81,156.77,21.27557818]
[1723362167308,9.61,156.81,156.78,1.27555936]
[1723362168000,9.61,156.83,156.78,1.27555936]
[1723362168188,9.61,156.81,156.77,20.0]
[1723362173398,9.61,156.79,156.77,20.0]
[1723362173706,9.61,156.79,156.76,15.3553]
[1723362175001,6.3758,156.85,156.76,15.3553]
[1723362175195,9.61,156.79,156.77,20.0]
[1723362176908,9.61,156.8,156.77,20.0]
[1723362177093,9.61,156.81,156.77,20.0]
[1723362178716,17.038356,156.86,156.77,21.27544823]
[1723362179012,17.038356,156.86,156.78,45.12549]
[1723362179013,9.61,156.84,156.78,45.12549]
[1723362179203,9.61,156.84,156.79,20.0]
[1723362180601,0.842056,156.86,156.79,20.0]
[1723362180602,9.61,156.82,156.79,20.0]
[1723362181020,9.61,156.82,156.77,20.0]
[1723362182692,0.842056,156.86,156.77,20.0]
[1723362182897,0.842056,156.86,156.78,1.40092409]
[1723362183111,0.842056,156.86,156.78,46.40092409]
[1723362183112,9.61,156.84,156.78,46.40092409]
[1723362183314,9.61,156.84,156.79,20.0]
[1723362184902,9.61,156.82,156.79,20.0]
[1723362185104,9.61,156.82,156.77,20.0]
[1723362186819,9.61,156.8,156.77,20.0]
[1723362188822,9.61,156.8,156.76,15.3553]
[1723362188999,9.61,156.79,156.76,15.3553]
[1723362189519,9.61,156.79,156.71,9.61]
[1723362189520,9.61,156.79,156.72,15.3067]
[1723362190234,9.61,156.77,156.72,15.3067]
[1723362190600,9.61,156.77,156.7,14.42856941]
[1723362190806,9.61,156.71,156.68,15.3067]
[1723362191125,38.56549,156.78,156.66,6.3715]
[1723362191126,9.61,156.73,156.66,6.3715]
[1723362191307,9.61,156.73,156.66,24.03856941]
[1723362191508,8.01490015,156.73,156.66,24.03856941]
[1723362192531,8.01490015,156.73,156.66,14.42856941]
[1723362192908,9.61,156.72,156.66,6.3715]
[1723362193227,9.61,156.7,156.66,6.3715]
[1723362193903,0.12549,156.75,156.64,15.3067]
[1723362193904,9.61,156.68,156.64,15.3067]
[1723362194104,9.61,156.66,156.64,15.3067]
[1723362194312,9.61,156.65,156.61,6.3715]
[1723362194505,9.61,156.64,156.6,15.3067]
[1723362194706,9.61,156.62,156.56,21.6782]
[1723362195509,9.61,156.6,156.56,21.6782]
[1723362195712,19.25,156.62,156.56,21.6782]
[1723362196723,19.25,156.62,156.57,20.0]
[1723362201510,19.25,156.64,156.57,20.0]
[1723362201706,6.0432,156.68,156.58,1.27720162]
[1723362201908,19.25,156.67,156.59,6.3715]
[1723362202121,34.8488,156.69,156.6,21.27690788]
[1723362202319,34.8488,156.69,156.61,1.27675053]
[1723362202512,19.25,156.73,156.63,15.4233]
[1723362202717,19.25,156.73,156.64,21.40197596]
[1723362203035,19.25,156.73,156.65,1.27641402]
[1723362203725,19.25,156.75,156.65,0.12549]
[1723362204029,19.25,156.73,156.65,0.25098]
[1723362204223,19.25,156.73,156.64,20.12549]
[1723362204407,19.25,156.73,156.64,20.0]
[1723362204613,19.25,156.73,156.65,1.27648339]
[1723362205127,15.5041,156.78,156.65,65.52648339]
[1723362205320,19.25,156.77,156.68,0.12549]
[1723362205531,19.25,156.77,156.68,65.50196]
[1723362205732,19.25,156.77,156.69,1.27605477]
[1723362206948,19.25,156.77,156.68,65.50196]
[1723362207149,19.25,156.77,156.68,65.12549]
[1723362207314,19.25,156.75,156.68,20.0]
[1723362207515,19.25,156.73,156.67,20.0]
[1723362208320,19.25,156.75,156.67,20.0]
[1723362208825,19.25,156.75,156.68,1.27620904]
[1723362209022,6.3775,156.8,156.68,46.40169904]
[1723362209337,19.25,156.76,156.69,35.4233]
[1723362209643,19.25,156.74,156.69,35.4233]
[1723362210414,19.25,156.76,156.69,35.4233]
[1723362211345,19.25,156.76,156.7,1.27619361]
[1723362211649,19.25,156.78,156.71,1.27610041]
[1723362211950,19.25,156.76,156.69,35.4233]
[1723362213521,19.25,156.78,156.7,1.27610745]
[1723362214219,19.25,156.78,156.69,35.4233]
[1723362214415,19.25,156.76,156.69,35.4233]
[1723362219234,19.25,156.76,156.7,1.27620282]
[1723362219418,19.25,156.78,156.71,1.27608876]
[1723362219721,6.3767,156.83,156.72,6.5935]
[1723362219930,19.25,156.81,156.73,20.0]
[1723362220117,19.25,156.79,156.73,20.0]
[1723362220724,19.25,156.79,156.72,6.5935]
[1723362221047,19.25,156.79,156.73,20.0]
[1723362221431,6.3767,156.82,156.73,20.0]
[1723362221619,23.00175937,156.86,156.73,20.0]
[1723362221620,19.25,156.8,156.73,20.0]
[1723362221828,19.25,156.8,156.74,1.27582451]
[1723362222021,19.25,156.8,156.73,20.0]
[1723362224545,19.25,156.78,156.73,20.0]
[1723362225152,19.25,156.79,156.73,20.0]
[1723362225743,19.25,156.77,156.73,20.0]
[1723362227349,19.25,156.77,156.72,6.5935]
[1723362228237,19.25,156.77,156.69,15.4233]
[1723362228428,19.25,156.77,156.7,20.0]
[1723362231146,19.25,156.75,156.7,20.0]
[1723362237069,0.12549,156.78,156.7,20.0]
[1723362237274,19.25,156.75,156.7,20.0]
[1723362237762,9.61,156.73,156.7,20.0]
[1723362238635,45.37647,156.78,156.7,20.0]
[1723362238835,9.61,156.75,156.7,20.0]
[1723362243970,9.61,156.73,156.7,20.0]
[1723362246948,9.61,156.71,156.65,15.5416]
[1723362247152,9.61,156.69,156.65,15.5416]
[1723362248150,9.61,156.69,156.66,20.0]
[1723362248553,9.61,156.67,156.66,20.0]
[1723362248754,9.61,156.67,156.63,20.0]
[1723362253774,9.61,156.69,156.63,20.0]
[1723362253982,9.61,156.69,156.63,21.27655226]
[1723362254190,0.12549,156.73,156.63,21.27655226]
[1723362254360,9.61,156.7,156.63,21.27655226]
[1723362255061,9.61,156.7,156.63,20.0]
[1723362255859,9.61,156.7,156.64,1.27663098]
[1723362257261,9.61,156.7,156.63,20.0]
[1723362257857,9.61,156.68,156.63,20.0]
[1723362260062,6.63138,156.73,156.63,20.0]
[1723362260263,9.61,156.68,156.63,20.0]
[1723362260975,9.61,156.66,156.62,15.5416]
[1723362261185,9.61,156.64,156.58,15.5416]
[1723362261378,9.61,156.62,156.58,15.5416]
[1723362261579,9.61,156.6,156.53,21.7699]
[1723362261778,9.61,156.58,156.53,21.7699]
[1723362262973,9.61,156.58,156.54,20.0]
[1723362263682,19.25,156.59,156.54,20.0]
[1723362263996,19.25,156.59,156.53,21.7699]
[1723362264694,19.25,156.57,156.53,21.7699]
[1723362265262,19.25,156.57,156.54,20.0]
[1723362266470,19.25,156.57,156.53,21.7699]
[1723362266672,19.25,156.57,156.54,20.0]
[1723362266890,19.25,156.59,156.54,20.0]
[1723362268487,19.25,156.57,156.54,20.0]
[1723362272893,19.25,156.59,156.54,20.0]
[1723362274725,19.25,156.59,156.54,21.27737564]
[1723362275418,19.25,156.61,156.54,20.0]
[1723362275814,19.25,156.63,156.55,46.7790881]
[1723362276002,19.25,156.63,156.56,20.0]
[1723362276311,19.25,156.63,156.57,1.27705144]
[1723362276693,19.25,156.63,156.58,1.27704773]
[1723362276898,19.25,156.63,156.57,0.12549]
[1723362277111,19.25,156.63,156.57,45.50196]
[1723362277415,19.25,156.63,156.58,20.0]
[1723362277990,19.25,156.61,156.55,20.0]
[1723362278191,19.25,156.61,156.54,20.0]
[1723362278702,19.25,156.63,156.54,20.0]
[1723362279221,19.25,156.63,156.55,45.50196]
[1723362279395,19.25,156.63,156.56,20.0]
[1723362279716,19.25,156.63,156.57,45.0]
[1723362279897,19.25,156.63,156.58,20.0]
[1723362282005,19.25,156.63,156.55,0.12549]
[1723362282202,19.25,156.61,156.54,20.0]
[1723362283804,9.62,156.6,156.54,20.0]
[1723362286994,9.62,156.6,156.54,28.05706941]
[1723362287918,27.7091,156.68,156.55,54.83612699]
[1723362288092,9.62,156.62,156.56,20.0]
[1723362288298,9.62,156.62,156.57,46.40247755]
[1723362288602,9.62,156.62,156.58,21.27699546]
[1723362289007,6.382,156.69,156.59,22.9896]
[1723362289204,9.62,156.65,156.6,20.0]
[1723362294019,9.62,156.63,156.6,20.0]
[1723362295225,9.62,156.61,156.6,20.0]
[1723362299928,9.62,156.61,156.59,16.5591]
[1723362300226,9.62,156.61,156.55,31.04666941]
[1723362300429,9.62,156.59,156.56,20.0]
[1723362300624,9.62,156.59,156.55,31.04666941]
[1723362300833,9.62,156.57,156.55,22.9896]
[1723362301803,9.62,156.57,156.55,16.5591]
[1723362302034,9.62,156.57,156.51,31.04666941]
[1723362302236,9.62,156.54,156.51,31.04666941]
[1723362302417,9.62,156.56,156.52,1.27755359]
[1723362302617,9.62,156.58,156.52,8.05706941]
[1723362302829,9.62,156.58,156.53,10.29594887]
[1723362303017,9.62,156.62,156.54,23.24406941]
[1723362303215,9.62,156.62,156.55,29.01866125]
[1723362303512,9.62,156.62,156.56,8.43353941]
[1723362303719,9.62,156.58,156.57,20.0]
[1723362304122,9.62,156.58,156.56,6.1475]
[1723362304123,9.62,156.58,156.54,15.187]
[1723362304429,9.62,156.56,156.55,20.0]
[1723362305631,9.62,156.58,156.55,20.0]
[1723362306504,9.62,156.56,156.55,20.0]
[1723362306708,9.62,156.56,156.52,6.1475]
[1723362307935,9.62,156.56,156.53,20.0]
[1723362309222,9.62,156.56,156.51,20.0]
[1723362310627,9.62,156.54,156.51,20.0]
[1723362311210,9.62,156.52,156.5,8.05706941]
[1723362311707,0.25098,156.59,156.46,15.187]
[1723362311708,9.62,156.51,156.46,15.187]
[1723362311907,9.62,156.51,156.46,23.24406941]
[1723362312113,9.62,156.51,156.47,8.05706941]
[1723362312310,9.62,156.51,156.48,1.27790207]
[1723362312609,9.62,156.51,156.49,1.27784302]
[1723362312933,9.62,156.54,156.49,8.05706941]
[1723362313120,9.62,156.54,156.5,20.0]
[1723362313533,16.0397,156.62,156.51,1.27768804]
[1723362313833,9.62,156.57,156.5,26.1475]
[1723362315433,9.62,156.55,156.5,26.1475]
[1723362316320,9.62,156.55,156.5,20.0]
[1723362316520,9.62,156.55,156.47,26.1475]
[1723362316911,9.62,156.55,156.48,10.89761375]
[1723362317126,9.62,156.55,156.49,20.0]
[1723362317337,38.48,156.6,156.49,20.0]
[1723362317338,16.0397,156.62,156.51,15.187]
[1723362317521,9.62,156.58,156.52,20.0]
[1723362319546,9.62,156.56,156.52,20.0]
[1723362320223,9.62,156.56,156.53,1.2775098]
[1723362320743,9.62,156.58,156.53,1.2775098]
[1723362321433,9.62,156.58,156.52,20.0]
[1723362323219,9.62,156.56,156.52,20.0]
[1723362328733,9.62,156.58,156.52,21.27758927]
[1723362331152,9.62,156.58,156.52,20.0]
[1723362331533,9.62,156.56,156.52,20.0]
[1723362332731,9.62,156.54,156.48,15.2654]
[1723362333086,9.62,156.52,156.48,15.2654]
[1723362333355,9.62,156.5,156.44,15.2654]
[1723362335276,9.62,156.46,156.4,15.2654]
[1723362336549,9.62,156.46,156.41,20.0]
[1723362336772,9.62,156.45,156.4,15.2654]
[1723362336977,9.62,156.43,156.4,15.2654]
[1723362338781,9.62,156.43,156.41,20.0]
[1723362338976,9.62,156.43,156.39,6.344]
[1723362340165,9.62,156.44,156.4,20.0]